{"text_format":"1","workbook":"xlsx","n_sheets":6,"sheets":["START","KOMMA IGNANG","FRÅGELISTA","DIAGRAM","GLOBALA MÅL","FÖRKLARINGAR"],"not_rendered":{"charts":3,"images":3,"macros":1,"external_links":1,"defined_names":0,"comments":0,"pivot_tables":0},"unopened":[],"bounds":{"document_bytes":16777216,"sheet_cells":100000,"rows_first":2000,"rows_last":500,"rows_between":2000,"halvings":0,"cell_chars":16384,"cell_head_chars":4096},"cells_cut":0,"cells_raw":0,"read":"whole","date_system":"1900"}

{"sheet":"START","index":0,"n_rows":10,"n_cols":4,"rows_kept":10,"cut":false,"hidden":false,"merged":[]}
[]
[]
[null,null,null,"Start"]
[null,null,null,"\nDet här är ett verktyg som kvantifierar och visualiserar de mervärden som följer av energieffektiviseringsåtgärder. Det kan exempelvis vara minskade utsläpp av luftföroreningar eller ökad sysselsättning. Syftet är att verktyget ska tydliggöra de olika mervärden som kommer med ”på köpet” när olika åtgärder för energieffektivisering genomförs. Den utvecklade versionen av verktyget är i grunden baserat på verktyget \"Visualiserade mervärden av energieffektivisering\" som tagits fram av Energimyndigheten. Verktyget utvecklades som en del av projektet EnOff energieffektivisering i offentlig sektor.\n\nMed hjälp av de diagrammen som skapas i verktyget åskådliggörs mervärden (nyttor och vinster) som de faktiskt ger – för miljö, medborgare, kommande generationer, verksamhetens legitimitet och affärsutveckling. Även negativa effekter inkluderas i modellen. Samtidigt visar verktyget hur genomförandet av projektet kan påverka de globala hållbarhetsmålen. Verktyget beräknar ett Mervärdetal som varierar mellan negativt och positivt 100% som visar hur proketet bidragit till olika mervärde.\n\nVerktyget beskriver ett projekts inverkan på mervärden i 11 olika kategorier.  Med hjälp av en Mervärdefaktor kan användaren bestämma värdet på olika mervärden. Användaren måste själv värdera hur stor betydelse olika mervärden ges i det aktuella sammanhanget. För att resultatet ska bli bra behöver användaren avsätta tid för att sätta sig in i beskrivningar av frågeställningar och mervärden. Som med alla verktyg går arbetet fortare ju mer man arbetar med det. \nJust det här verktyget är utvecklat för den offentliga sektorns förutsättningar. \nModellen kan användas på flera olika sätt. Några användningsområden är;\n\n• En utökad analys av planerade åtgärder för energieffektivisering\n• Uppföljning av genomförda åtgärder för energieffektivisering\n• Ökad kunskap och samsyn genom att i grupp gemensamt analysera mervärden av planerade eller genomförda energieffektiviseringsåtgärder\n\nVerktyget är uppbyggt som en arbetsbok med flera olika flikar i Excel. Modellen bygger på att användaren besvarar ett antal frågeställningar. Innehållsförteckningen nedan beskriver de olika flikarna i arbetsboken.\n"]
[null,null,null,"1 START"]
[null,null,null,"2 KOMMA IGÅNG"]
[null,null,null,"3 FRÅGESLISTA"]
[null,null,null,"4 DIAGRAM"]
[null,null,null,"5 GLOBALA MÅL"]
[null,null,null,"6 FÖRKLARINGAR"]

{"sheet":"KOMMA IGNANG","index":1,"n_rows":16,"n_cols":4,"rows_kept":16,"cut":false,"hidden":false,"merged":[]}
[]
[]
[null,null,null,"Komma igång"]
[null,null,null,"Verktyget är uppbyggt i Excel och består av flera olika flikar. Nedan får du vägledning i hur du använder verktyget."]
[]
[null,null,null," Är det rätt verktyg?"]
[null,null,null,"Innan du påbörjar arbetet bör du kontrollera att verktyget passar för det projekt som du arbetar med. \n\nOm du svarar ja på de två kontrollfrågorna nedan är det bara att gå vidare, annars bör du fundera på om det finns andra metoder som passar bättre.\n\n• Är målet med åtgärden eller projektet energieffektivisering?\n• Är genomföraren en offentlig aktör? Exempelvis en kommun, kommunägt bolag, länsstyrelse eller regionförbund.\n"]
[null,null,null,"Vem ska svara?"]
[null,null,null,"\nDen eller de som svarar på frågorna bör ha god kännedom om projektet eller åtgärdens effekter. Eftersom mervärdena spänner över flera olika områden är det en fördel om olika kompetenser kan bidra i arbetet. Under arbetet med att utveckla modellen har vi sett att det är värdefullt att samverka runt att svara på frågorna. Arbetet leder till samtal som skapar en ökad samsyn, bredare förståelse för olika mervärden och en mer nyanserad bild av de erhållna mervärdena.\n"]
[null,null,null,"Svara på frågor"]
[null,null,null,"\nUnder flik 3 finns frågeställningarna som ska besvaras. Svaren vägs samman och presenteras som en färgkodning för just det mervärdet. För många mervärden kan svaret vara olika beroende på om man utgår från påverkan i närområde/kommun eller region ,eller ett nationellt perspektiv. Varje fråga ska därför besvaras för dessa två nivåer.  Kolumn C representerar Mervärde-faktor, dvs hur mycket varje frågekategori ska väga. För Mervärde-faktorn väljer man ett tal mellan 0-6. Om man inte gör några val kommer det stå en tvåa på samtliga frågekategorier, vilket betyder att de väga samma. Om en fråga är irrelevant ska man välja en nolla, en etta om frågan som väga halv och en fyra om det väger dubbelt osv.\n\nSom stöd för att tolka frågorna finns dels en hjälptext som visas om man markerar en fråga och dels en mer utförlig beskrivning av mervärdena under fliken Förklaringar. Första gången som du använder verktyget bör du läsa igenom förklaringstexten för att få god förståelse för innebörden\n\nFör varje fråga väljer man ett svar från listan där man kan välja mellan svarsalternativen:\n\n• Förbättrat, om projektet har en positiv påverkan\n• Försämrat, om projektet har en negativ påverkan\n• Oförändrat, om projektet inte medfört någon förändring\n\n\nAnvändaren måste själv göra en bedömning av projektets inverkan för de olika mervärdena. Bedömningen kan göras utifrån statistik och mätvärden. Saknas uppmäta värden görs bedömningen utifrån erfarenheter från andra liknande projekt. Den användare som ska göra bedömningen behöver således ha god kunskap om effektiviseringsåtgärder, och vilken påverkan sådana åtgärder kan tänkas ha på både lokal nivå och på samhället i stort. Det kan vara en fördel om personer som representerar olika kompetenser samverkar i bedömningen för att ge en så rättvis bild av projektet som möjligt. \nDet finns även möjlighet att göra en notering i kommentarsfältet. En notering i kommentarsfältet kan vara värdefullt för att dokumentera ett resonemang som förts eller om det är något man vill följa upp.\n\nSpara Excel-filen under ett nytt namn så har du kvar svaren."]
[null,null,null,"Gå till flik 3"]
[null,null,null,"Diagram över mervärden och koppling till globala mål"]
[null,null,null,"\nNär alla frågor är besvarade går du till flik 4 Diagram för att få visualiseringen av mervärden via diagram och tabell. Samtidigt kan du gå till flik 5, Globala mål som visar hur projektet kan påverka globala målen. Där presenteras sammanvägningar av de svar som lämnats på frågorna under flik 3 Frågelista. \n\nDu kan exportera diagrammen på flikarna 4 och 5 genom att gå till Arkiv och välja skriva ut dessa resultat eller producera PDF filer. "]
[null,null,null,"Gå till flik 4"]
[null,null,null,"Gå till flik 5"]

{"sheet":"FRÅGELISTA","index":2,"n_rows":62,"n_cols":16,"rows_kept":62,"cut":false,"hidden":false,"merged":[]}
[]
[null,null,null,null,null,"Mervärden - Frågeställningar",null,null,null,null,0]
[null,null,null,null,null,null,null,null,null,null,1,"Förbättrat"]
[null,null,null,null,null,"Projektets namn:",null,"Projektnamn",null,null,2,"Oförändrat"]
[null,null,null,null,null,"Datum för analys:",null,"Datum",null,null,3,"Försämrat"]
[null,null,null,null,null,null,null,null,null,null,4]
[null,null,null,null,null,null,null,null,null,null,5]
[null,null,null,null,null,null,null,null,null,null,6]
[null,null,null,null,null,null,null,null,null,"Lokalt","Nationellt"]
[null,null,"Mervärde- faktor","Weights in %",null,"Kategori",null,null,"Hjälp","Påverkan  i närområde, kommun eller region","Påverkan på nationell nivå","Kommentar"]
[null,null,2,{"$f":"(C11/$D$62)*100","v":9.0909090909090917},null,"Energibesparing ",null,"Fråga","?",{"$f":"((IF(COUNTA(J12:J14)=0,\"\",IF(COUNTIF(J12:J14,\"Ej tillämpbart\")=COUNTA(J12:J14),\"Ej tillämpbart\",COUNTIF(J12:J14,\"Förbättrat\")-COUNTIF(J12:J14,\"Försämrat\"))*D11)/100)/3)","v":0},{"$f":"(((IF(COUNTA(K12:K14)=0,\"\",IF(COUNTIF(K12:K14,\"Ej tillämpbart\")=COUNTA(K12:K14),\"Ej tillämpbart\",COUNTIF(K12:K14,\"Förbättrat\")-COUNTIF(K12:K14,\"Försämrat\"))*D11)/100)/3))","v":0},null,null,"Mål","Lokalt","Nationellt"]
[null,null,null,{"$f":"(100/$E$62)/3","v":3.0303030303030307},null,"Mål 7, 11, 12, 13",1,"Hur har projektet bidragit till energibesparing?",null,"Oförändrat","Oförändrat",null,null,1,"-","-"]
[null,null,null,{"$f":"(100/$E$62)/3","v":3.0303030303030307},null,"Mål 7, 11, 13",2,"Hur bidrar projektet till användning av hållbar energisystem?",null,"Oförändrat","Oförändrat",null,null,2,"-","-"]
[null,null,null,3.0303030303030307,null,"Mål 11, 12, 13 ",3,"Hur bidrar projektet till energieffektivisering?",null,"Oförändrat","Oförändrat",null,null,3,{"$f":"IF(J21=\"förbättrat\",D21,(IF(J21=\"Försämrat\",-D21,0)))+IF(J22=\"förbättrat\",D22,(IF(J22=\"Försämrat\",-D22,0)))+IF(J23=\"förbättrat\",D23,(IF(J23=\"Försämrat\",-D23,0)))+IF(J24=\"förbättrat\",D24,(IF(J24=\"Försämrat\",-D24,0)))+IF(J25=\"förbättrat\",D25,(IF(J25=\"Försämrat\",-D25,0)))+IF(J26=\"förbättrat\",D26,(IF(J26=\"Försämrat\",-D26,0)))+IF(J32=\"förbättrat\",D32,(IF(J32=\"Försämrat\",-D32,0)))+IF(J33=\"förbättrat\",D33,(IF(J33=\"Försämrat\",-D33,0)))+IF(J36=\"förbättrat\",D36,(IF(J36=\"Försämrat\",-D36,0)))+IF(J37=\"förbättrat\",D37,(IF(J37=\"Försämrat\",-D37,0)))+IF(J40=\"förbättrat\",D40,(IF(J40=\"Försämrat\",-D40,0)))","v":0},{"$f":"IF(K21=\"förbättrat\",D21,(IF(K21=\"Försämrat\",-D21,0)))+IF(K22=\"förbättrat\",D22,(IF(K22=\"Försämrat\",-D22,0)))+IF(K23=\"förbättrat\",D23,(IF(K23=\"Försämrat\",-D23,0)))+IF(K24=\"förbättrat\",D24,(IF(K24=\"Försämrat\",-D24,0)))+IF(K25=\"förbättrat\",D25,(IF(K25=\"Försämrat\",-D25,0)))+IF(K26=\"förbättrat\",D26,(IF(K26=\"Försämrat\",-D26,0)))+IF(K32=\"förbättrat\",D32,(IF(K32=\"Försämrat\",-D32,0)))+IF(K33=\"förbättrat\",D33,(IF(K33=\"Försämrat\",-D33,0)))+IF(K36=\"förbättrat\",D36,(IF(K36=\"Försämrat\",-D36,0)))+IF(K37=\"förbättrat\",D37,(IF(K37=\"Försämrat\",-D37,0)))+IF(K40=\"förbättrat\",D40,(IF(K40=\"Försämrat\",-D40,0)))","v":0}]
[null,null,null,null,null,null,null,null,null,null,null,null,null,4,{"$f":"IF(J25=\"förbättrat\",D25,(IF(J25=\"Försämrat\",-D25,0)))+IF(J26=\"förbättrat\",D26,(IF(J26=\"Försämrat\",-D26,0)))","v":0},{"$f":"IF(K25=\"förbättrat\",D25,(IF(K25=\"Försämrat\",-D25,0)))+IF(K26=\"förbättrat\",D26,(IF(K26=\"Försämrat\",-D26,0)))","v":0}]
[null,null,2,{"$f":"(C16/$D$62)*100","v":9.0909090909090917},null,"Försörjningstrygghet",null,"Fråga","?",{"$f":"(((IF(COUNTA(J17:J18)=0,\"\",IF(COUNTIF(J17:J18,\"Ej tillämpbart\")=COUNTA(J17:J18),\"Ej tillämpbart\",COUNTIF(J17:J18,\"Förbättrat\")-COUNTIF(J17:J18,\"Försämrat\"))*D16)/100)/2))","v":0},{"$f":"(((IF(COUNTA(K17:K19)=0,\"\",IF(COUNTIF(K17:K19,\"Ej tillämpbart\")=COUNTA(K17:K19),\"Ej tillämpbart\",COUNTIF(K17:K19,\"Förbättrat\")-COUNTIF(K17:K19,\"Försämrat\"))*D16)/100)/2))","v":0},null,null,5,"-","-"]
[null,null,null,{"$f":"(100/$E$62)/2","v":4.5454545454545459},null,"Mål 7, 11, ",1,"Hur har projektet påverkat beroendet av geografiskt avlägsna energikällor?",null,"Oförändrat","Oförändrat",null,null,6,{"$f":"IF(J31=\"förbättrat\",D31,(IF(J31=\"Försämrat\",-D31,0)))+IF(J32=\"förbättrat\",D32,(IF(J32=\"Försämrat\",-D32,0)))+IF(J33=\"förbättrat\",D33,(IF(J33=\"Försämrat\",-D33,0)))","v":0},{"$f":"IF(K31=\"förbättrat\",D31,(IF(K31=\"Försämrat\",-D31,0)))+IF(K32=\"förbättrat\",D32,(IF(K32=\"Försämrat\",-D32,0)))+IF(K33=\"förbättrat\",D33,(IF(K33=\"Försämrat\",-D33,0)))","v":0}]
[null,null,null,{"$f":"(100/$E$62)/2","v":4.5454545454545459},null,"Mål 7, 11, ",2,"Hur har projektet påverkat beroendet av enskilda energikällor?",null,"Oförändrat","Oförändrat",null,null,7,{"$f":"IF(J12=\"förbättrat\",D12,(IF(J12=\"Försämrat\",-D12,0)))+IF(J13=\"förbättrat\",D13,(IF(J13=\"Försämrat\",-D13,0)))+IF(J17=\"förbättrat\",D17,(IF(J17=\"Försämrat\",-D17,0)))+IF(J18=\"förbättrat\",D18,(IF(J18=\"Försämrat\",-D18,0)))+IF(J60=\"förbättrat\",D60,(IF(J60=\"Försämrat\",-D60,0)))","v":0},{"$f":"IF(K12=\"förbättrat\",D12,(IF(K12=\"Försämrat\",-D12,0)))+IF(K13=\"förbättrat\",D13,(IF(K13=\"Försämrat\",-D13,0)))+IF(K17=\"förbättrat\",D17,(IF(K17=\"Försämrat\",-D17,0)))+IF(K18=\"förbättrat\",D18,(IF(K18=\"Försämrat\",-D18,0)))+IF(K60=\"förbättrat\",D60,(IF(K60=\"Försämrat\",-D60,0)))","v":0}]
[null,null,null,null,null,null,null,null,null,null,null,null,null,8,{"$f":"IF(J29=\"förbättrat\",D29,(IF(J29=\"Försämrat\",-D29,0)))+IF(J44=\"förbättrat\",D44,(IF(J44=\"Försämrat\",-D44,0)))+IF(J25=\"förbättrat\",D25,(IF(J25=\"Försämrat\",-D25,0)))+IF(J46=\"förbättrat\",D46,(IF(J46=\"Försämrat\",-D46,0)))+IF(J49=\"förbättrat\",D49,(IF(J49=\"Försämrat\",-D49,0)))+IF(J52=\"förbättrat\",D52,(IF(J52=\"Försämrat\",-D52,0)))+IF(J55=\"förbättrat\",D55,(IF(J55=\"Försämrat\",-D55,0)))+IF(J56=\"förbättrat\",D56,(IF(J56=\"Försämrat\",-D56,0)))+IF(J59=\"förbättrat\",D59,(IF(J59=\"Försämrat\",-D59,0)))+IF(J60=\"förbättrat\",D60,(IF(J60=\"Försämrat\",-D60,0)))","v":0},{"$f":"IF(K29=\"förbättrat\",D29,(IF(K29=\"Försämrat\",-D29,0)))+IF(K44=\"förbättrat\",D44,(IF(K44=\"Försämrat\",-D44,0)))+IF(K25=\"förbättrat\",D25,(IF(K25=\"Försämrat\",-D25,0)))+IF(K46=\"förbättrat\",D46,(IF(K46=\"Försämrat\",-D46,0)))+IF(K49=\"förbättrat\",D49,(IF(K49=\"Försämrat\",-D49,0)))+IF(K52=\"förbättrat\",D52,(IF(K52=\"Försämrat\",-D52,0)))+IF(K55=\"förbättrat\",D55,(IF(K55=\"Försämrat\",-D55,0)))+IF(K56=\"förbättrat\",D56,(IF(K56=\"Försämrat\",-D56,0)))+IF(K59=\"förbättrat\",D59,(IF(K59=\"Försämrat\",-D59,0)))+IF(K60=\"förbättrat\",D60,(IF(K60=\"Försämrat\",-D60,0)))","v":0}]
[null,null,2,{"$f":"(C20/$D$62)*100","v":9.0909090909090917},null,"Hälsa och välbefinnande",null,"Fråga","?",{"$f":"(((IF(COUNTA(J21:J26)=0,\"\",IF(COUNTIF(J21:J26,\"Ej tillämpbart\")=COUNTA(J21:J26),\"Ej tillämpbart\",COUNTIF(J21:J26,\"Förbättrat\")-COUNTIF(J21:J26,\"Försämrat\"))*D20)/100)/6))","v":0},{"$f":"(((IF(COUNTA(K21:K26)=0,\"\",IF(COUNTIF(K21:K26,\"Ej tillämpbart\")=COUNTA(K21:K26),\"Ej tillämpbart\",COUNTIF(K21:K26,\"Förbättrat\")-COUNTIF(K21:K26,\"Försämrat\"))*D20)/100)/6))","v":0},null,null,9,{"$f":"IF(J21=\"förbättrat\",D21,(IF(J21=\"Försämrat\",-D21,0)))+IF(J22=\"förbättrat\",D22,(IF(J22=\"Försämrat\",-D22,0)))+IF(J23=\"förbättrat\",D23,(IF(J23=\"Försämrat\",-D23,0)))+IF(J24=\"förbättrat\",D24,(IF(J24=\"Försämrat\",-D24,0)))+IF(J25=\"förbättrat\",D25,(IF(J25=\"Försämrat\",-D25,0)))+IF(J26=\"förbättrat\",D26,(IF(J26=\"Försämrat\",-D26,0)))+IF(J30=\"förbättrat\",D30,(IF(J30=\"Försämrat\",-D30,0)))+IF(J44=\"förbättrat\",D44,(IF(J44=\"Försämrat\",-D44,0)))+IF(J45=\"förbättrat\",D45,(IF(J45=\"Försämrat\",-D45,0)))+IF(J46=\"förbättrat\",D46,(IF(J46=\"Försämrat\",-D46,0)))+IF(J49=\"förbättrat\",D49,(IF(J49=\"Försämrat\",-D49,0)))+IF(J52=\"förbättrat\",D52,(IF(J52=\"Försämrat\",-D52,0)))+IF(J55=\"förbättrat\",D55,(IF(J55=\"Försämrat\",-D55,0)))+IF(J56=\"förbättrat\",D56,(IF(J56=\"Försämrat\",-D56,0)))+IF(J60=\"förbättrat\",D60,(IF(J60=\"Försämrat\",-D60,0)))","v":0},{"$f":"IF(K21=\"förbättrat\",D21,(IF(K21=\"Försämrat\",-D21,0)))+IF(K22=\"förbättrat\",D22,(IF(K22=\"Försämrat\",-D22,0)))+IF(K23=\"förbättrat\",D23,(IF(K23=\"Försämrat\",-D23,0)))+IF(K24=\"förbättrat\",D24,(IF(K24=\"Försämrat\",-D24,0)))+IF(K25=\"förbättrat\",D25,(IF(K25=\"Försämrat\",-D25,0)))+IF(K26=\"förbättrat\",D26,(IF(K26=\"Försämrat\",-D26,0)))+IF(K30=\"förbättrat\",D30,(IF(K30=\"Försämrat\",-D30,0)))+IF(K44=\"förbättrat\",D44,(IF(K44=\"Försämrat\",-D44,0)))+IF(K45=\"förbättrat\",D45,(IF(K45=\"Försämrat\",-D45,0)))+IF(K46=\"förbättrat\",D46,(IF(K46=\"Försämrat\",-D46,0)))+IF(K49=\"förbättrat\",D49,(IF(K49=\"Försämrat\",-D49,0)))+IF(K52=\"förbättrat\",D52,(IF(K52=\"Försämrat\",-D52,0)))+IF(K55=\"förbättrat\",D55,(IF(K55=\"Försämrat\",-D55,0)))+IF(K56=\"förbättrat\",D56,(IF(K56=\"Försämrat\",-D56,0)))+IF(K60=\"förbättrat\",D60,(IF(K60=\"Försämrat\",-D60,0)))","v":0}]
[null,null,null,{"$f":"(100/$E$62)/6","v":1.5151515151515154},null,"Mål 3, 9, 10, 11",1,"Hur påverkar projektet inomhusklimatet med avseende på temperatur?",null,"Oförändrat","Oförändrat",null,null,10,{"$f":"IF(J21=\"förbättrat\",D21,(IF(J21=\"Försämrat\",-D21,0)))+IF(J22=\"förbättrat\",D22,(IF(J22=\"Försämrat\",-D22,0)))+IF(J23=\"förbättrat\",D23,(IF(J23=\"Försämrat\",-D23,0)))+IF(J24=\"förbättrat\",D24,(IF(J24=\"Försämrat\",-D24,0)))+IF(J26=\"förbättrat\",D26,(IF(J26=\"Försämrat\",-D26,0)))+IF(J59=\"förbättrat\",D59,(IF(J59=\"Försämrat\",-D59,0)))","v":0},{"$f":"IF(K21=\"förbättrat\",D21,(IF(K21=\"Försämrat\",-D21,0)))+IF(K22=\"förbättrat\",D22,(IF(K22=\"Försämrat\",-D22,0)))+IF(K23=\"förbättrat\",D23,(IF(K23=\"Försämrat\",-D23,0)))+IF(K24=\"förbättrat\",D24,(IF(K24=\"Försämrat\",-D24,0)))+IF(K26=\"förbättrat\",D26,(IF(K26=\"Försämrat\",-D26,0)))+IF(K59=\"förbättrat\",D59,(IF(K59=\"Försämrat\",-D59,0)))","v":0}]
[null,null,null,{"$f":"(100/$E$62)/6","v":1.5151515151515154},null,"Mål 3, 9, 10, 11",2,"Hur påverkar projektet ljusförhållandena?",null,"Oförändrat","Oförändrat",null,null,11,{"$f":"IF(J12=\"förbättrat\",D12,(IF(J12=\"Försämrat\",-D12,0)))+IF(J13=\"förbättrat\",D13,(IF(J13=\"Försämrat\",-D13,0)))+IF(J14=\"förbättrat\",D14,(IF(J14=\"Försämrat\",-D14,0)))+IF(J17=\"förbättrat\",D17,(IF(J17=\"Försämrat\",-D17,0)))+IF(J18=\"förbättrat\",D18,(IF(J18=\"Försämrat\",-D18,0)))+IF(J21=\"förbättrat\",D21,(IF(J21=\"Försämrat\",-D21,0)))+IF(J22=\"förbättrat\",D22,(IF(J22=\"Försämrat\",-D22,0)))+IF(J23=\"förbättrat\",D23,(IF(J23=\"Försämrat\",-D23,0)))+IF(J24=\"förbättrat\",D24,(IF(J24=\"Försämrat\",-D24,0)))+IF(J30=\"förbättrat\",D30,(IF(J30=\"Försämrat\",-D30,0)))+IF(J31=\"förbättrat\",D31,(IF(J31=\"Försämrat\",-D31,0)))+IF(J32=\"förbättrat\",D32,(IF(J32=\"Försämrat\",-D32,0)))+IF(J33=\"förbättrat\",D33,(IF(J33=\"Försämrat\",-D33,0)))+IF(J36=\"förbättrat\",D36,(IF(J36=\"Försämrat\",-D36,0)))+IF(J37=\"förbättrat\",D37,(IF(J37=\"Försämrat\",-D37,0)))+IF(J40=\"förbättrat\",D40,(IF(J40=\"Försämrat\",-D40,0)))+IF(J44=\"förbättrat\",D44,(IF(J44=\"Försämrat\",-D44,0)))+IF(J46=\"förbättrat\",D46,(IF(J46=\"Försämrat\",-D46,0)))+IF(J52=\"förbättrat\",D52,(IF(J52=\"Försämrat\",-D52,0)))+IF(J55=\"förbättrat\",D55,(IF(J55=\"Försämrat\",-D55,0)))+IF(J56=\"förbättrat\",D56,(IF(J56=\"Försämrat\",-D56,0)))","v":0},{"$f":"IF(K12=\"förbättrat\",D12,(IF(K12=\"Försämrat\",-D12,0)))+IF(K13=\"förbättrat\",D13,(IF(K13=\"Försämrat\",-D13,0)))+IF(K14=\"förbättrat\",D14,(IF(K14=\"Försämrat\",-D14,0)))+IF(K17=\"förbättrat\",D17,(IF(K17=\"Försämrat\",-D17,0)))+IF(K18=\"förbättrat\",D18,(IF(K18=\"Försämrat\",-D18,0)))+IF(K21=\"förbättrat\",D21,(IF(K21=\"Försämrat\",-D21,0)))+IF(K22=\"förbättrat\",D22,(IF(K22=\"Försämrat\",-D22,0)))+IF(K23=\"förbättrat\",D23,(IF(K23=\"Försämrat\",-D23,0)))+IF(K24=\"förbättrat\",D24,(IF(K24=\"Försämrat\",-D24,0)))+IF(K30=\"förbättrat\",D30,(IF(K30=\"Försämrat\",-D30,0)))+IF(K31=\"förbättrat\",D31,(IF(K31=\"Försämrat\",-D31,0)))+IF(K32=\"förbättrat\",D32,(IF(K32=\"Försämrat\",-D32,0)))+IF(K33=\"förbättrat\",D33,(IF(K33=\"Försämrat\",-D33,0)))+IF(K36=\"förbättrat\",D36,(IF(K36=\"Försämrat\",-D36,0)))+IF(K37=\"förbättrat\",D37,(IF(K37=\"Försämrat\",-D37,0)))+IF(K40=\"förbättrat\",D40,(IF(K40=\"Försämrat\",-D40,0)))+IF(K44=\"förbättrat\",D44,(IF(K44=\"Försämrat\",-D44,0)))+IF(K46=\"förbättrat\",D46,(IF(K46=\"Försämrat\",-D46,0)))+IF(K52=\"förbättrat\",D52,(IF(K52=\"Försämrat\",-D52,0)))+IF(K55=\"förbättrat\",D55,(IF(K55=\"Försämrat\",-D55,0)))+IF(K56=\"förbättrat\",D56,(IF(K56=\"Försämrat\",-D56,0)))","v":0}]
[null,null,null,1.5151515151515154,null,"Mål 3, 9, 10, 11",3,"Hur påverkar projektet upplevelsen av ljud och buller?",null,"Oförändrat","Oförändrat",null,null,12,{"$f":"IF(J12=\"förbättrat\",D12,(IF(J12=\"Försämrat\",-D12,0)))+IF(J14=\"förbättrat\",D14,(IF(J14=\"Försämrat\",-D14,0)))+IF(J25=\"förbättrat\",D25,(IF(J25=\"Försämrat\",-D25,0)))+IF(J29=\"förbättrat\",D29,(IF(J29=\"Försämrat\",-D29,0)))+IF(J30=\"förbättrat\",D30,(IF(J30=\"Försämrat\",-D30,0)))+IF(J31=\"förbättrat\",D31,(IF(J31=\"Försämrat\",-D31,0)))+IF(J44=\"förbättrat\",D44,(IF(J44=\"Försämrat\",-D44,0)))+IF(J46=\"förbättrat\",D46,(IF(J46=\"Försämrat\",-D46,0)))+IF(J45=\"förbättrat\",D45,(IF(J45=\"Försämrat\",-D45,0)))+IF(J55=\"förbättrat\",D55,(IF(J55=\"Försämrat\",-D55,0)))+IF(J56=\"förbättrat\",D56,(IF(J56=\"Försämrat\",-D56,0)))","v":0},{"$f":"IF(K12=\"förbättrat\",D12,(IF(K12=\"Försämrat\",-D12,0)))+IF(K14=\"förbättrat\",D14,(IF(K14=\"Försämrat\",-D14,0)))+IF(K25=\"förbättrat\",D25,(IF(K25=\"Försämrat\",-D25,0)))+IF(K29=\"förbättrat\",D29,(IF(K29=\"Försämrat\",-D29,0)))+IF(K30=\"förbättrat\",D30,(IF(K30=\"Försämrat\",-D30,0)))+IF(K31=\"förbättrat\",D31,(IF(K31=\"Försämrat\",-D31,0)))+IF(K44=\"förbättrat\",D44,(IF(K44=\"Försämrat\",-D44,0)))+IF(K46=\"förbättrat\",D46,(IF(K46=\"Försämrat\",-D46,0)))+IF(K45=\"förbättrat\",D45,(IF(K45=\"Försämrat\",-D45,0)))+IF(K55=\"förbättrat\",D55,(IF(K55=\"Försämrat\",-D55,0)))+IF(K56=\"förbättrat\",D56,(IF(K56=\"Försämrat\",-D56,0)))","v":0}]
[null,null,null,1.5151515151515154,null,"Mål 3, 9, 10, 11",4,"Hur påverkar projektet inomhusluften?",null,"Oförändrat","Oförändrat",null,null,13,{"$f":"IF(J12=\"förbättrat\",D12,(IF(J12=\"Försämrat\",-D12,0)))+IF(J13=\"förbättrat\",D13,(IF(J13=\"Försämrat\",-D13,0)))+IF(J14=\"förbättrat\",D14,(IF(J14=\"Försämrat\",-D14,0)))+IF(J36=\"förbättrat\",D36,(IF(J36=\"Försämrat\",-D36,0)))+IF(J37=\"förbättrat\",D37,(IF(J37=\"Försämrat\",-D37,0)))+IF(J40=\"förbättrat\",D40,(IF(J40=\"Försämrat\",-D40,0)))","v":0},{"$f":"IF(K12=\"förbättrat\",D12,(IF(K12=\"Försämrat\",-D12,0)))+IF(K13=\"förbättrat\",D13,(IF(K13=\"Försämrat\",-D13,0)))+IF(K14=\"förbättrat\",D14,(IF(K14=\"Försämrat\",-D14,0)))+IF(K36=\"förbättrat\",D36,(IF(K36=\"Försämrat\",-D36,0)))+IF(K37=\"förbättrat\",D37,(IF(K37=\"Försämrat\",-D37,0)))+IF(K40=\"förbättrat\",D40,(IF(K40=\"Försämrat\",-D40,0)))","v":0}]
[null,null,null,1.5151515151515154,null,"Mål 3, 4, 8, 9, 12",5,"Hur har projektet påverkat antalet sjukskrivningar?",null,"Oförändrat","Oförändrat",null,null,14,{"$f":"IF(J32=\"förbättrat\",D32,(IF(J32=\"Försämrat\",-D32,0)))+IF(J33=\"förbättrat\",D33,(IF(J33=\"Försämrat\",-D33,0)))+IF(J36=\"förbättrat\",D36,(IF(J36=\"Försämrat\",-D36,0)))+IF(J37=\"förbättrat\",D37,(IF(J37=\"Försämrat\",-D37,0)))+IF(J40=\"förbättrat\",D40,(IF(J40=\"Försämrat\",-D40,0)))","v":0},{"$f":"IF(K32=\"förbättrat\",D32,(IF(K32=\"Försämrat\",-D32,0)))+IF(K33=\"förbättrat\",D33,(IF(K33=\"Försämrat\",-D33,0)))+IF(K36=\"förbättrat\",D36,(IF(K36=\"Försämrat\",-D36,0)))+IF(K37=\"förbättrat\",D37,(IF(K37=\"Försämrat\",-D37,0)))+IF(K40=\"förbättrat\",D40,(IF(K40=\"Försämrat\",-D40,0)))","v":0}]
[null,null,null,{"$f":"(100/$E$62)/6","v":1.5151515151515154},null,"Mål 3, 4, 9, 10",6,"Hur har projektet påverkat risken för att människor skadas?",null,"Oförändrat","Oförändrat",null,null,15,{"$f":"IF(J36=\"förbättrat\",D36,(IF(J36=\"Försämrat\",-D36,0)))+IF(J37=\"förbättrat\",D37,(IF(J37=\"Försämrat\",-D37,0)))+IF(J40=\"förbättrat\",D40,(IF(J40=\"Försämrat\",-D40,0)))","v":0},{"$f":"IF(K36=\"förbättrat\",D36,(IF(K36=\"Försämrat\",-D36,0)))+IF(K37=\"förbättrat\",D37,(IF(K37=\"Försämrat\",-D37,0)))+IF(K40=\"förbättrat\",D40,(IF(K40=\"Försämrat\",-D40,0)))","v":0}]
[null,null,null,null,null,null,null,null,null,null,null,null,null,16,{"$f":"IF(J49=\"förbättrat\",D49,(IF(J49=\"Försämrat\",-D49,0)))+IF(J59=\"förbättrat\",D59,(IF(J59=\"Försämrat\",-D59,0)))","v":0},{"$f":"IF(K49=\"förbättrat\",D49,(IF(K49=\"Försämrat\",-D49,0)))+IF(K59=\"förbättrat\",D59,(IF(K59=\"Försämrat\",-D59,0)))","v":0}]
[null,null,2,{"$f":"(C28/$D$62)*100","v":9.0909090909090917},null,"Resurshantering",null,"Fråga","?",{"$f":"(((IF(COUNTA(J29:J33)=0,\"\",IF(COUNTIF(J29:J33,\"Ej tillämpbart\")=COUNTA(J29:J33),\"Ej tillämpbart\",COUNTIF(J29:J33,\"Förbättrat\")-COUNTIF(J29:J33,\"Försämrat\"))*D28)/100)/5))","v":0},{"$f":"(((IF(COUNTA(K29:K33)=0,\"\",IF(COUNTIF(K29:K33,\"Ej tillämpbart\")=COUNTA(K29:K33),\"Ej tillämpbart\",COUNTIF(K29:K33,\"Förbättrat\")-COUNTIF(K29:K33,\"Försämrat\"))*D28)/100)/5))","v":0}]
[null,null,null,{"$f":"(100/$E$62)/5","v":1.8181818181818183},null,"Mål 8, 12",1,"Hur har projektet bidragit till personalbesparing?",null,"Oförändrat","Oförändrat"]
[null,null,null,{"$f":"(100/$E$62)/5","v":1.8181818181818183},null,"Mål 9, 11, 12",2,"Hur har projektet påverkat resursanvändningen?",null,"Oförändrat","Oförändrat"]
[null,null,null,1.8181818181818183,null,"Mål 6, 11, 12",3,"Hur har projektet påverkat vattenanvändningen? ",null,"Oförändrat","Oförändrat"]
[null,null,null,1.8181818181818183,null,"Mål 3, 6, 11, 14",4,"Hur har projektet påverkat kemikaliespridningen?",null,"Oförändrat","Oförändrat"]
[null,null,null,1.8181818181818183,null,"Mål 3, 6, 11, 14",5,"Hur har projektet påverkat avfallsmängder?",null,"Oförändrat","Oförändrat"]
[]
[null,null,2,{"$f":"(C35/$D$62)*100","v":9.0909090909090917},null,"Växthusgasutsläpp",null,"Fråga","?",{"$f":"(((IF(COUNTA(J36:J37)=0,\"\",IF(COUNTIF(J36:J37,\"Ej tillämpbart\")=COUNTA(J36:J37),\"Ej tillämpbart\",COUNTIF(J36:J37,\"Förbättrat\")-COUNTIF(J36:J37,\"Försämrat\"))*D35)/100)/2))","v":0},{"$f":"(((IF(COUNTA(K36:K37)=0,\"\",IF(COUNTIF(K36:K37,\"Ej tillämpbart\")=COUNTA(K36:K37),\"Ej tillämpbart\",COUNTIF(K36:K37,\"Förbättrat\")-COUNTIF(K36:K37,\"Försämrat\"))*D35)/100)/2))","v":0}]
[null,null,null,{"$f":"(100/$E$62)/2","v":4.5454545454545459},null,"Mål 3, 11, 13, 14, 15",1,"Hur har projektet påverkat de direkta växthusgasutsläppen?",null,"Oförändrat","Oförändrat"]
[null,null,null,{"$f":"(100/$E$62)/2","v":4.5454545454545459},null,"Mål 3, 11, 13, 14, 15",2,"Hur har projektet påverkat bindningen av koldioxid?",null,"Oförändrat","Oförändrat"]
[]
[null,null,2,{"$f":"(C39/$D$62)*100","v":9.0909090909090917},null,"Luftföroreningar",null,"Fråga","?",{"$f":"((IF(COUNTA(J40)=0,\"\",IF(COUNTIF(J40,\"Ej tillämpbart\")=COUNTA(J40),\"Ej tillämpbart\",COUNTIF(J40,\"Förbättrat\")-COUNTIF(J40,\"Försämrat\"))*D39)/100))","v":0},{"$f":"((IF(COUNTA(K40)=0,\"\",IF(COUNTIF(K40,\"Ej tillämpbart\")=COUNTA(K40),\"Ej tillämpbart\",COUNTIF(K40,\"Förbättrat\")-COUNTIF(K40,\"Försämrat\"))*D39)/100))","v":0}]
[null,null,null,{"$f":"(100/$E$62)/1","v":9.0909090909090917},null,"Mål 3, 11, 13, 14, 15",1,"Hur har påverkat utsläpp av partiklar?",null,"Oförändrat","Oförändrat"]
[]
[]
[null,null,2,{"$f":"(C43/$D$62)*100","v":9.0909090909090917},null,"Industriell produktivitet",null,"Fråga","?",{"$f":"(((IF(COUNTA(J44:J46)=0,\"\",IF(COUNTIF(J44:J46,\"Ej tillämpbart\")=COUNTA(J44:J46),\"Ej tillämpbart\",COUNTIF(J44:J46,\"Förbättrat\")-COUNTIF(J44:J46,\"Försämrat\"))*D43)/100)/3))","v":0},{"$f":"(((IF(COUNTA(K44:K46)=0,\"\",IF(COUNTIF(K44:K46,\"Ej tillämpbart\")=COUNTA(K44:K46),\"Ej tillämpbart\",COUNTIF(K44:K46,\"Förbättrat\")-COUNTIF(K44:K46,\"Försämrat\"))*D43)/100)/3))","v":0}]
[null,null,null,{"$f":"(100/$E$62)/3","v":3.0303030303030307},null,"Mål 8, 9, 11, 12",1,"Hur har projektet påverkat organisationens värde?",null,"Oförändrat","Oförändrat"]
[null,null,null,{"$f":"(100/$E$62)/3","v":3.0303030303030307},null,"Mål 9, 12",2,"Hur har projektet påverkat driftkostnaderna?",null,"Oförändrat","Oförändrat"]
[null,null,null,3.0303030303030307,null,"Mål 8, 9, 11, 12",3,"Hur har projektet påverkat livslängd och underhållskostnader? ",null,"Oförändrat","Oförändrat"]
[]
[null,null,2,{"$f":"(C48/$D$62)*100","v":9.0909090909090917},null,"Sysselsättning",null,"Fråga","?",{"$f":"((IF(COUNTA(J49)=0,\"\",IF(COUNTIF(J49,\"Ej tillämpbart\")=COUNTA(J49),\"Ej tillämpbart\",COUNTIF(J49,\"Förbättrat\")-COUNTIF(J49,\"Försämrat\"))*D48)/100))","v":0},{"$f":"((IF(COUNTA(K49)=0,\"\",IF(COUNTIF(K49,\"Ej tillämpbart\")=COUNTA(K49),\"Ej tillämpbart\",COUNTIF(K49,\"Förbättrat\")-COUNTIF(K49,\"Försämrat\"))*D48)/100))","v":0}]
[null,null,null,{"$f":"(100/$E$62)/1","v":9.0909090909090917},null,"Mål 8, 9, 16",1,"Hur har projektet bidragit till arbetstillfällen inom ramen för åtgärden? ",null,"Oförändrat","Oförändrat"]
[]
[null,null,2,{"$f":"(C51/$D$62)*100","v":9.0909090909090917},null,"Värdet av tillgångar",null,"Fråga","?",{"$f":"((IF(COUNTA(J52)=0,\"\",IF(COUNTIF(J52,\"Ej tillämpbart\")=COUNTA(J52),\"Ej tillämpbart\",COUNTIF(J52,\"Förbättrat\")-COUNTIF(J52,\"Försämrat\"))*D51)/100))","v":0},{"$f":"((IF(COUNTA(K52)=0,\"\",IF(COUNTIF(K52,\"Ej tillämpbart\")=COUNTA(K52),\"Ej tillämpbart\",COUNTIF(K52,\"Förbättrat\")-COUNTIF(K52,\"Försämrat\"))*D51)/100))","v":0}]
[null,null,null,{"$f":"(100/$E$62)/1","v":9.0909090909090917},null,"Mål 8, 9, 11",1,"Hur har projektet påverkat  hyresintäkter?",null,"Oförändrat","Oförändrat"]
[]
[null,null,2,{"$f":"(C54/$D$62)*100","v":9.0909090909090917},null,"Offentliga sektorns budget",null,"Fråga","?",{"$f":"(((IF(COUNTA(J55:J56)=0,\"\",IF(COUNTIF(J55:J56,\"Ej tillämpbart\")=COUNTA(J55:J56),\"Ej tillämpbart\",COUNTIF(J55:J56,\"Förbättrat\")-COUNTIF(J55:J56,\"Försämrat\"))*D54)/100)/2))","v":0},{"$f":"(((IF(COUNTA(K55:K56)=0,\"\",IF(COUNTIF(K55:K56,\"Ej tillämpbart\")=COUNTA(K55:K56),\"Ej tillämpbart\",COUNTIF(K55:K56,\"Förbättrat\")-COUNTIF(K55:K56,\"Försämrat\")))*D54)/100)/2)","v":0}]
[null,null,null,{"$f":"(100/$E$62)/2","v":4.5454545454545459},null,"Mål 8, 9, 11, 12",1,"Hur har projektet påverkat  kostnader i den kommunala budgeten?",null,"Oförändrat","Oförändrat"]
[null,null,null,{"$f":"(100/$E$62)/2","v":4.5454545454545459},null,"Mål 8, 9, 11, 12",2,"Hur har projektet möjliggjort frigörande av kapital som kan användas för andra investeringar eller utökad verksamhet?",null,"Oförändrat","Oförändrat"]
[]
[null,null,2,{"$f":"(C58/$D$62)*100","v":9.0909090909090917},null,"Disponibel inkomst",null,"Fråga","?",{"$f":"(((IF(COUNTA(J59:J60)=0,\"\",IF(COUNTIF(J59:J60,\"Ej tillämpbart\")=COUNTA(J59:J60),\"Ej tillämpbart\",COUNTIF(J59:J60,\"Förbättrat\")-COUNTIF(J59:J60,\"Försämrat\")))*D58)/100)/2)","v":0},{"$f":"(((IF(COUNTA(K59:K60)=0,\"\",IF(COUNTIF(K59:K60,\"Ej tillämpbart\")=COUNTA(K59:K60),\"Ej tillämpbart\",COUNTIF(K59:K60,\"Förbättrat\")-COUNTIF(K59:K60,\"Försämrat\")))*D58)/100)/2)","v":0}]
[null,null,null,{"$f":"(100/$E$62)/2","v":4.5454545454545459},null,"Mål 8, 10, 16",1,"Hur har projektet påverkat hyresnivån/avgiftsnivån för kommuninnevånare/verksamhet?",null,"Oförändrat","Oförändrat"]
[null,null,null,{"$f":"(100/$E$62)/2","v":4.5454545454545459},null,"Mål 7, 8, 9, 10 ",2,"Hur har projektet påverkat energikostnaderna för verksamheter och/eller boende?",null,"Oförändrat","Oförändrat"]
[]
[null,null,"Summen",{"$f":"C11+C16+C20+C28+C35+C39+C43+C48+C51+C54+C58","v":22},{"$f":"COUNTIF(I11:I61,\"*\")","v":11}]

{"sheet":"DIAGRAM","index":3,"n_rows":26,"n_cols":11,"rows_kept":26,"cut":false,"hidden":false,"merged":[]}
[]
[null,null,null,null,null,{"$f":"FRÅGELISTA!$F$11","v":"Energibesparing "},"Point 1",{"$f":"FRÅGELISTA!D11","v":9.0909090909090917},{"$f":"H2","v":9.0909090909090917},{"$f":"H2+H3+H4+H5","v":36.363636363636367},"Miljö"]
[null,null,null,{"$f":"FRÅGELISTA!$H$5","v":"Datum"},null,{"$f":"FRÅGELISTA!$F$28","v":"Resurshantering"},"Point 2",{"$f":"FRÅGELISTA!D28","v":9.0909090909090917},{"$f":"H3","v":9.0909090909090917}]
[null,null,null,null,null,{"$f":"FRÅGELISTA!$F$35","v":"Växthusgasutsläpp"},"Point 3",{"$f":"FRÅGELISTA!D35","v":9.0909090909090917},9.0909090909090917]
[null,null,null,null,null,{"$f":"FRÅGELISTA!$F$39","v":"Luftföroreningar"},"Point 4",{"$f":"FRÅGELISTA!D39","v":9.0909090909090917},9.0909090909090917]
[null,null,null,null,null,{"$f":"FRÅGELISTA!$F$43","v":"Industriell produktivitet"},"Point 5",{"$f":"FRÅGELISTA!D43","v":9.0909090909090917},9.0909090909090917,{"$f":"H6+H7+H8+H9","v":36.363636363636367},"Ekonomi"]
[null,null,null,null,null,{"$f":"FRÅGELISTA!$F$51","v":"Värdet av tillgångar"},"Point 6",{"$f":"FRÅGELISTA!D51","v":9.0909090909090917},9.0909090909090917]
[null,null,null,null,null,{"$f":"FRÅGELISTA!$F$54","v":"Offentliga sektorns budget"},"Point 7",{"$f":"FRÅGELISTA!D54","v":9.0909090909090917},9.0909090909090917]
[null,null,null,null,null,{"$f":"FRÅGELISTA!$F$58","v":"Disponibel inkomst"},"Point 8",{"$f":"FRÅGELISTA!D58","v":9.0909090909090917},9.0909090909090917]
[null,null,null,null,null,{"$f":"FRÅGELISTA!$F$16","v":"Försörjningstrygghet"},"Point 9",{"$f":"FRÅGELISTA!D16","v":9.0909090909090917},9.0909090909090917]
[null,null,null,null,null,{"$f":"FRÅGELISTA!$F$20","v":"Hälsa och välbefinnande"},"Point 10",{"$f":"FRÅGELISTA!D20","v":9.0909090909090917},9.0909090909090917,{"$f":"H10+H11+H12","v":27.272727272727273},"Socialt"]
[null,null,null,null,null,{"$f":"FRÅGELISTA!$F$48","v":"Sysselsättning"},"Point 11",{"$f":"FRÅGELISTA!D48","v":9.0909090909090917},9.0909090909090917]
[null,null,null,null,null,null,null,"Serie 2","Serie 3"]
[null,"Categori","Lokalt","Nationellt",null,{"$f":"FRÅGELISTA!$F$11","v":"Energibesparing "},"Point 1",{"$f":"FRÅGELISTA!J11","v":0},{"$f":"FRÅGELISTA!K11","v":0}]
[null,{"$f":"FRÅGELISTA!$F$11","v":"Energibesparing "},{"$f":"FRÅGELISTA!J11","v":0},{"$f":"FRÅGELISTA!K11","v":0},null,{"$f":"FRÅGELISTA!$F$28","v":"Resurshantering"},"Point 2",{"$f":"FRÅGELISTA!J28","v":0},{"$f":"FRÅGELISTA!K28","v":0}]
[null,{"$f":"FRÅGELISTA!$F$16","v":"Försörjningstrygghet"},{"$f":"FRÅGELISTA!J16","v":0},{"$f":"FRÅGELISTA!K16","v":0},null,{"$f":"FRÅGELISTA!$F$35","v":"Växthusgasutsläpp"},"Point 3",{"$f":"FRÅGELISTA!J35","v":0},{"$f":"FRÅGELISTA!K35","v":0}]
[null,{"$f":"FRÅGELISTA!$F$20","v":"Hälsa och välbefinnande"},{"$f":"FRÅGELISTA!J20","v":0},{"$f":"FRÅGELISTA!K20","v":0},null,{"$f":"FRÅGELISTA!$F$39","v":"Luftföroreningar"},"Point 4",{"$f":"FRÅGELISTA!J39","v":0},{"$f":"FRÅGELISTA!K39","v":0}]
[null,{"$f":"FRÅGELISTA!$F$28","v":"Resurshantering"},{"$f":"FRÅGELISTA!J28","v":0},{"$f":"FRÅGELISTA!K28","v":0},null,{"$f":"FRÅGELISTA!$F$43","v":"Industriell produktivitet"},"Point 5",{"$f":"FRÅGELISTA!J43","v":0},{"$f":"FRÅGELISTA!K43","v":0}]
[null,{"$f":"FRÅGELISTA!$F$35","v":"Växthusgasutsläpp"},{"$f":"FRÅGELISTA!J35","v":0},{"$f":"FRÅGELISTA!K35","v":0},null,{"$f":"FRÅGELISTA!$F$51","v":"Värdet av tillgångar"},"Point 6",{"$f":"FRÅGELISTA!J51","v":0},{"$f":"FRÅGELISTA!K51","v":0}]
[null,{"$f":"FRÅGELISTA!$F$39","v":"Luftföroreningar"},{"$f":"FRÅGELISTA!J39","v":0},{"$f":"FRÅGELISTA!K39","v":0},null,{"$f":"FRÅGELISTA!$F$54","v":"Offentliga sektorns budget"},"Point 7",{"$f":"FRÅGELISTA!J54","v":0},{"$f":"FRÅGELISTA!K54","v":0}]
[null,{"$f":"FRÅGELISTA!$F$43","v":"Industriell produktivitet"},{"$f":"FRÅGELISTA!J43","v":0},{"$f":"FRÅGELISTA!K43","v":0},null,{"$f":"FRÅGELISTA!$F$58","v":"Disponibel inkomst"},"Point 8",{"$f":"FRÅGELISTA!J58","v":0},{"$f":"FRÅGELISTA!K58","v":0}]
[null,{"$f":"FRÅGELISTA!$F$48","v":"Sysselsättning"},{"$f":"FRÅGELISTA!J48","v":0},{"$f":"FRÅGELISTA!K48","v":0},null,{"$f":"FRÅGELISTA!$F$16","v":"Försörjningstrygghet"},"Point 9",{"$f":"FRÅGELISTA!J16","v":0},{"$f":"FRÅGELISTA!K16","v":0}]
[null,{"$f":"FRÅGELISTA!$F$51","v":"Värdet av tillgångar"},{"$f":"FRÅGELISTA!J51","v":0},{"$f":"FRÅGELISTA!K51","v":0},null,{"$f":"FRÅGELISTA!$F$20","v":"Hälsa och välbefinnande"},"Point 10",{"$f":"FRÅGELISTA!J20","v":0},{"$f":"FRÅGELISTA!K20","v":0}]
[null,{"$f":"FRÅGELISTA!$F$54","v":"Offentliga sektorns budget"},{"$f":"FRÅGELISTA!J54","v":0},{"$f":"FRÅGELISTA!K54","v":0},null,{"$f":"FRÅGELISTA!$F$48","v":"Sysselsättning"},"Point 11",{"$f":"FRÅGELISTA!J48","v":0},{"$f":"FRÅGELISTA!K48","v":0}]
[null,{"$f":"FRÅGELISTA!$F$58","v":"Disponibel inkomst"},{"$f":"FRÅGELISTA!J58","v":0},{"$f":"FRÅGELISTA!K58","v":0}]
[null,"Mervärdetal",{"$f":"SUM(C15:C25)","v":0},{"$f":"SUM(D15:D25)","v":0}]

{"sheet":"GLOBALA MÅL","index":4,"n_rows":7,"n_cols":18,"rows_kept":7,"cut":false,"hidden":false,"merged":[]}
[]
[null,"Diagrammen nedan visar hur genomförandet av projektet kan påverka globala målen."]
[]
[]
[null,"Globala Mål",{"$f":"FRÅGELISTA!N12","v":1},{"$f":"FRÅGELISTA!N13","v":2},{"$f":"FRÅGELISTA!N14","v":3},{"$f":"FRÅGELISTA!N15","v":4},{"$f":"FRÅGELISTA!N16","v":5},{"$f":"FRÅGELISTA!N17","v":6},{"$f":"FRÅGELISTA!N18","v":7},{"$f":"FRÅGELISTA!N19","v":8},{"$f":"FRÅGELISTA!N20","v":9},{"$f":"FRÅGELISTA!N21","v":10},{"$f":"FRÅGELISTA!N22","v":11},{"$f":"FRÅGELISTA!N23","v":12},{"$f":"FRÅGELISTA!N24","v":13},{"$f":"FRÅGELISTA!N25","v":14},{"$f":"FRÅGELISTA!N26","v":15},{"$f":"FRÅGELISTA!N27","v":16}]
[null,"Lokalt",{"$f":"FRÅGELISTA!O12","v":"-"},{"$f":"FRÅGELISTA!O13","v":"-"},{"$f":"FRÅGELISTA!O14","v":0},{"$f":"FRÅGELISTA!O15","v":0},{"$f":"FRÅGELISTA!O16","v":"-"},{"$f":"FRÅGELISTA!O17","v":0},{"$f":"FRÅGELISTA!O18","v":0},{"$f":"FRÅGELISTA!O19","v":0},{"$f":"FRÅGELISTA!O20","v":0},{"$f":"FRÅGELISTA!O21","v":0},{"$f":"FRÅGELISTA!O22","v":0},{"$f":"FRÅGELISTA!O23","v":0},{"$f":"FRÅGELISTA!O24","v":0},{"$f":"FRÅGELISTA!O25","v":0},{"$f":"FRÅGELISTA!O26","v":0},{"$f":"FRÅGELISTA!O27","v":0}]
[null,"Nationellt",{"$f":"FRÅGELISTA!P12","v":"-"},{"$f":"FRÅGELISTA!P13","v":"-"},{"$f":"FRÅGELISTA!P14","v":0},{"$f":"FRÅGELISTA!P15","v":0},{"$f":"FRÅGELISTA!P16","v":"-"},{"$f":"FRÅGELISTA!P17","v":0},{"$f":"FRÅGELISTA!P18","v":0},{"$f":"FRÅGELISTA!P19","v":0},{"$f":"FRÅGELISTA!P20","v":0},{"$f":"FRÅGELISTA!P21","v":0},{"$f":"FRÅGELISTA!P22","v":0},{"$f":"FRÅGELISTA!P23","v":0},{"$f":"FRÅGELISTA!P24","v":0},{"$f":"FRÅGELISTA!P25","v":0},{"$f":"FRÅGELISTA!P26","v":0},{"$f":"FRÅGELISTA!P27","v":0}]

{"sheet":"FÖRKLARINGAR","index":5,"n_rows":53,"n_cols":4,"rows_kept":53,"cut":false,"hidden":false,"merged":[]}
["FÖR"]
[]
[null,null,null,"Förklaringar till mervärden och frågeställningar"]
[]
[null,null,null,"1 ENERGIBESPARING"]
[null,null,null,"2 FÖRSÖRJNINGSTRYGGHET"]
[null,null,null,"3 HÄLSA OCH VÄLBEFINNANDE"]
[null,null,null,"4 RESURSHANTERING"]
[null,null,null,"5 VÄXTHUSGASUTSLÄPP"]
[null,null,null,"6 LUFTFÖRORENINGAR"]
[null,null,null,"7 INDUSTRIELL PRODUKTIVITET"]
[null,null,null,"8 SYSSELSÄTTNING"]
[null,null,null,"9 VÄRDET AV TILLGÅNGAR"]
[null,null,null,"10 OFFENTLIGA SEKTORNS BUDGET"]
[null,null,null,"11 DISPONIBEL INKOMST"]
[]
[null,null,null,"1             Energibesparing"]
[null,null,null,"\nEn energibesparing innebär en minskad användning av energi och är en effekt som kan uppnås genom energieffektivisering. Energieffektivisering innebär dock i sin tur att antingenen en viss nytta kan uppnås med lägre energianvändning eller att en given energianvändning bidrar till högre nytta, och denna nyttan då är ett av värdena med åtgärden\nSyftet med den här modellen är att visualisera de olika mervärden som följer med ”på köpet” när man genomför energieffektiviseringsåtgärder och i de allra flesta fall bör det finnas en förväntning på att projektet ska medföra även en energibesparing. \n\nExempel: Energieffektiviseringsåtgärder i ett skolkök som leder till minskad energianvändning men lika många serverade luncher är ett exempel på en energibesparing."]
[null,null,null,"Åter till frågelistan"]
[null,null,null,"2            Försörjningstrygghet"]
[null,null,null,"\nEnergisäkerhet är en stor fråga med många dimensioner. Försörjningstrygghet definieras av Energimyndigheten på följande sätt: ”Energisystemets förmåga att leverera energi enligt användarnas efterfrågan och behov, till en accepterad kostnad, samt marknadens, offentlig sektors och användarnas samlade krisberedskapsförmåga.”\nVid bedömning av enskilda projekt är det viktigt att analyser bl.a. hur åtgärden påverkar möjligheten att täcka energibehovet i samhället, hur infrastrukturen ser ut och hur prisbilden för bränslet/energin kan variera. En minskad energianvändning gör generellt att samhället blir mindre sårbart. \nOlika aspekter på försörjningstrygghet:\n\nEl: Sverige är i princip självförsörjande på el. Vårt elnät har tre funktionella systemnivåer; stamnät, regionnät och lokalnät. Stamnätet är anslutet till elnätet i de nordiska grannländerna, till Polen och Tyskland samt från årsskiftet 2015/16 också till Litauen. Vi är inte bara exportörer utan importerar även el under vissa perioder. Delar av elnätet kan slås ut av exempelvis stormar eller sabotage. Många energieffektiviseringsåtgärder kan bidra till att elavbrott undviks eller att konsekvensen av de elavbrott som sker lindras.\n\nFossila bränslen: I Sverige är användningen av fossila bränslen helt beroende av import. Störningar i leveranserna kan därför få omfattande konsekvenser. Många minns fortfarande hur omfattande oljekriserna på 1970-talet påverkade samhället.\n\nBiobränsle: Biobränslen är förnybara bränslen som produceras av levande organismer, biomassa. Biobränslen finns i många olika former: fasta bränslen såsom pellets, flytande såsom bioetanol och biodiesel, gasformiga bränslen såsom biogas. En stor del av de biobränslen som används i Sverige produceras inom landets gränser. Biobränsle har en hög till mycket hög energisäkerhet. \n\nFjärrvärme: Fjärrvärme produceras lokalt eller regionalt. Graden av energisäkerhet är olika i olika fjärrvärmenät. Fjärrvärmeproduktionen är beroende av tillgången på ingående bränslen och/eller restvärme från industrin, storlek på nät m.m. Fjärrvärmenät är flexibla, och har i de flesta fall möjlighet att använda olika bränslen och/eller restvärme från t.ex. näraliggande industri. Vidare har fjärrvärmenät en stor värmetröghet, vilket är en fördel vid till exempel elavbrott. Fjärrvärme har en hög energisäkerhet.\n"]
[null,null,null,"Muskelkraft: När kroppen utför ett arbete så använder vi muskelkraft. Mycket hög energisäkerhet.\n\nExempel 1: En cykelbana byggs längs ett pendlingsstråk. Den nya cykelbanan gör att fler börjar cykla och färre tar bilen. Därmed minskar beroende av fossila bränslen. I förlängningen innebär det att färre personer och verksamheter blir drabbade om den lokala bensinmacken av någon anledning inte kan trygga sin leverans av drivmedel. Energin för att cykla finns alltid med i musklerna, energisäkerheten för en cyklist är därför många gånger högre än för en bil. Bilen kan drivas på endast ett eller möjligen två bränslen, och dessa är ofta importerade och förknippade med långa transporter. \n\nExempel 2: För fossila bränslen som bensin och diesel försvåras åtkomsten och samtidigt höjs priset om infrastrukturen sätts ur spel. Egenproducerad el är förknippat med en lägre risk och kan bli extra lönsam, under förutsättning att det lokala/egna elnätet har möjlighet att fungera i ödrift (som ett avgränsat nät) när kopplingen till regionnät eller stamnät försvinner."]
[null,null,null,"Åter till frågelistan"]
[null,null,null,"3             Hälsa och välbefinnande"]
[null,null,null,"Hälsa och välmående utgår ifrån vilka hälsoeffekter energieffektiviseringen kommer att generera för individers boendeförhållanden och arbetsmiljö. Detta  mervärde utgår från flera aspekter som kan påverka individens hälsa och välmående och som bidrar till det nationella miljökvalitetsmålet God bebyggd miljö.\n\nFaktorer som inomhustemperatur, ljudisolering, inomhusluftkvalitet (inklusive fukt) och belysning har stor inverkan på människors hälsa och välbefinnande. För dessa områden finns kopplingar till en rad konsekvenser för hälsa och välmående för individer exempelvis:\n\n• Hjärtsjukdomar\n• Kronisk depression och stress\n• Allergier\n• Reumatism\n• Skador\n\nExempel på energieffektiviseringsåtgärder som kan påverka dessa aspekter av hälsa och välmående presenteras nedan. En viktig anmärkning är att många svenska byggnader, framför allt småhus och skolor, i dagsläget har en undermålig ventilation med för låga luftflöden. Åtgärder för förbättrad ventilation kan därför i en del fall innebära en ökad energianvändning.\n\n-Tilläggsisolering ger ett jämnare inomhusklimat och skyddar både mot för höga och för låga inomhustemperaturer. Detsamma gäller för installation av fönster med bättre värmeisoleringsförmåga.\n-Lägre ljudnivåer från byggnadstekniska installationer såsom ventilation eller uppvärmning.\n-Lägre ljudnivå från trafik genom till exempel byte av däck, färre transporter genom bebyggelseområden, tystare transporter såsom elbilar. Hög ljudnivå utifrån kan också avhjälpas med tilläggsisolering och energieffektiva fönster.\n-Effektiv belysning \n-En ny cykelbana ger möjligheter för fler att cykla. Även andra åtgärder som minskar bilanvändning till förmån för gång, cykel och kollektivtrafik bidrar till ökad fysisk aktivitet. "]
[null,null,null,"Åter till frågelistan"]
[null,null,null,"4             Resurshantering"]
[null,null,null,"Energi, oavsett om den kommer från förnybara källor eller ej, är en resurs att hushålla med. Minskad användning av fossila bränslen ger ett mervärde i form av minskade växthusgasutsläpp, men även andra energikällor påverkar i högre eller lägre grad miljön. \n\nSänkt efterfrågan på energi innebär också ett minskat behov av att utforska allt mer resurskrävande och miljöpåverkande former för utvinning av energi såsom utvinning av skifferolja och offshore upptagning av olja. Även för förnybar energi, som i allmänhet har relativt låg miljöpåverkan i Sverige, så minskar energihushållning risken för att ohållbara metoder tas till för att täcka efterfrågan, t ex genom avverkning eller andra intrång i värdefulla naturmiljöer. En effektiv energianvändning är en del av generationsmålet i miljömålssystemet, och påverkar också flera av miljökvalitetsmålen.\n\nExempel 1: Att ersätta tjänstebilar med en transportpool med delade bilar och cyklar av olika slag minskar inte bara energianvändningen för transporter utan minskar också antalet bilar och det material som går åt för att tillverka dessa.\n\nExempel 2: Energieffektiva tappvattenarmaturer minskar behovet av energi för att värma varmvatten samtidigt som vattenanvändningen minskar.\n\nExempel 3: Vid en energibesparande renovering kan samtidigt material med t ex allergiframkallande eller hormonstörande ämnen bytas ut mot säkrare alternativ.\n\nExempel 4:  Insatser för att minska matavfallet i matsalar/restauranger kan både minska energianvändningen och andra resurser i hela produktionskedjan och samtidigt minska avfallsmängderna.\n\nExempel 5: Renoveringar som minskar uppvärmningsbehovet, även om detta sker med bioenergi direkt eller genom fjärrvärme, frigör bioenergi för andra ändamål utan att öka trycket på den biologiska mångfalden.\n"]
[null,null,null,"Åter till frågelistan"]
[null,null,null,"5             Växthusgasutsläpp"]
[null,null,null,"Vattenånga (H2O), koldioxid (CO2), dikväveoxid (N2O), metan (CH4) och ozon (O3) är de främsta växthusgaserna i jordens atmosfär. Utöver dessa finns också konstgjorda växthusgaser. Växthusgasutsläpp mäts vanligen i koldioxidekvivalenter, och koldioxidhalten kan minskas genom att utsläppen blir mindre och/eller att koldioxid binds i material. Utsläppen kan antingen beräknas som direkta utsläpp, t ex ur en skorsten eller ett avgasrör, eller  som indirekta utsläpp, de utsläpp som en byggnad, ett fordon osv ger upphov till under sin livscykel vid tillverkning av produkten och vid framställningen av den energi som den använder i drift.\n\nExempel 1: Energieffektiviseringsåtgärder, inklusive av transporter, bidrar i de flesta fall till minskade utsläpp av växthusgaser. Vid minskad användning av fossila bränslen är detta uppenbart, men även förnybara bränslen har viss klimatpåverkan ur ett livscykelperspektiv. Därutöver kan mindre resurskrävande konstruktioner minska,  utsläppen av växthusgaser från nya byggnader ur ett livscykelperspektiv.\n\nExempel 2: Biobaserade material som träd tar upp koldioxid ur atmosfären som sen binds i materialet. Att till exempel använda trä istället för betong medför därför ökad kolinbindning utöver de minskade utsläppen från betongtillverkningen.\n"]
[null,null,null,"Åter till frågelistan"]
[null,null,null,"6             Luftföroreningar"]
[null,null,null,"\n\nRiksdagens definition av det nationella miljökvalitetsmålet Frisk luft lyder: \"Luften ska vara så ren att människors hälsa samt djur, växter och kulturvärden inte skadas.\"\n\nDe luftföroreningar som är mest skadliga för hälsan är inandningsbara partiklar, marknära ozon och vissa kolväten. Luftföroreningar orsakar även korrosion och gör att material som metaller, plast, kalksten m.m. bryts ned snabbare. På så sätt skadas till exempel byggnader och kulturhistoriskt värdefulla föremål. Dessutom skadas skogens träd och jordbrukets grödor av marknära ozon. Utsläpp av luftföroreningar som sker lokalt, exempelvis från industrianläggningar, fordon och vedeldade hus, påverkar luften i närområdet. Vissa luftföroreningar kan spridas över stora avstånd och över nationsgränser, t.ex. svaveldioxid och marknära ozon, och har därför en påverkan långt utöver det område där de genereras.\n\nEnergieffektivisering kan spela en viktig roll för att minska koncentrationer av lokala och/eller regionala luftföroreningar, såsom svaveldioxid, partiklar, oförbrända kolväten och kväveoxider. Detta gäller oavsett inom vilken sektor som energieffektiviseringen inträffar. Minskade luftföroreningar utomhus bidrar också till minskad partikelhalt och emissionskoncentration inomhus. \n\nPartiklar: Den största källan till utsläpp av små partiklar i Sverige är vedeldning i byggnader.\n\nInom el- och fjärrvärmeproduktion är det främst förbränning av biomassa, som orsakar utsläpp av partiklar, och en ökad reningsgrad är ett åtgärdsexempel inom denna kategori. Vid den storskaliga förbränning som sker vid fjärrvärmeproduktion sker en väsentligt mer effektiv rening än vid biobränsleförbränning i enskilda byggnader, varför fjärrvärme är att föredra framför individuella värmepannor.\n\nÅtgärder som innebär nya processer inom industrin kan bidra till minskade partikelutsläpp. Ett annat exempel är att minskad trafik minskar utsläppen av partiklar. Trafiken är den dominerande utsläppskällan för grova partiklar i Sverige.\n\nKväveoxider: Kväveoxider bildas vid förbränning vid höga temperaturer. Den största delen av utsläppen kommer från biltrafiken (såväl personbilar som lastbilar). Industrisektorn står för de näst största utsläppen av kväveoxider.\n\nExempel: Utsläppen från bl.a. förbränning inom industri och energi minskar, medan utsläppen från personbilar fortsätter att öka. Ökningen beror på att antalet dieselbilar ökat kraftigt. Åtgärder som minskar behovet av transporter bidrar positivt till att minska utsläppen av kväveoxider."]
[null,null,null,"Svaveldioxid: Utsläppen av svaveldioxid i Sverige har historiskt till största delen orsakats av förbränning av svavelhaltiga bränslen som kol och eldningsolja. Industrin står för mer än hälften av de svenska utsläppen av svaveldioxider. Ungefär två tredjedelar från industrins svaveldioxidutsläpp härrör från processer och den resterande tredjedelen från förbränning.\n\nExempel: El- och fjärrvärmeproduktionen bidrar med ungefär en fjärdedel av de nationella svaveldioxidutsläppen. Det största utsläppet kommer från förbränning av biobränsle. Vid den storskaliga förbränning som sker vid fjärrvärmeproduktion sker en väsentligt mer effektiv rening än vid biobränsleförbränning i enskilda byggnader, varför fjärrvärme är att föredra framför individuella värmepannor. Både energieffektivisering och konvertering från enskild värmepanna till fjärrvärme kan bidra till minskade utsläpp av svaveloxider.\n\nPå transportsidan står främst sjöfarten för svaveldioxidutsläppen, övriga transportslag står för en mindre del svaveldioxidutsläpp. Minskat transportbehov, av alla slag, bidrar till att minska utsläppen av svaveloxid.\n\nOzon: Ozon finns naturligt i luften, men marknära ozon är också en luftförorening som bildas av kväveoxider och flyktiga organiska ämnen. Bildandet sker främst vid inverkan av starkt solljus under sommarhalvåret.\n\nExempel: Avgaser från biltrafik bidrar till att marknära ozon bildas. Åtgärder som leder till minskad biltrafik bidrar till att minska bildningen av marknära ozon."]
[null,null,null,"Åter till frågelistan"]
[null,null,null,"7             Industriell produktivitet"]
[null,null,null,"Mervärdet Industriell produktivitet omfattar förbättrad produktivitet. I IEA:s modell gäller mervärdet kommersiella företag, men resonemangen kan i många fall även tillämpas på offentliga aktörer. Många kommuner har dessutom aktiebolag där produktiviteten kan gynnas av vissa energieffektiviseringsåtgärder.\n\nI en energieffektiviseringskalkyl ställs ofta investeringskostnaden för den nya installationen mot de minskade utgifterna för energi, och kravet för att genomföra åtgärden är att besparingen ska överstiga kostnaderna med en viss marginal. En energieffektiviseringsåtgärd medför nästan alltid större kostnadsbesparingar än just den minskade kostnaden för de köpta kilowattimmarna. Ofta uppstår även andra ekonomiska fördelar på köpet såsom till exempel ökad produktivitet, minskat underhållsbehov och minskad användning av material.\n\nDessa mervärden räknas sällan med i en energieffektiviseringskalkyl, men kan särskilt i industriella sammanhang vara betydande. I vissa fall kan det samlade värdet av ökad produktivitet och operativa fördelar överstiga värdet av själva investeringen. De ökade intäkterna tack vare ökad produktion och minskade utgifterna till följd av minskad kassation kan avsevärt minska återbetalningstiden för energieffektiviseringsåtgärder. För att beräkna dessa mervärden måste någon form av jämförelse göras, vilket kan vara svårt eftersom fördelarna med energieffektiviseringsåtgärder ofta beror på att flera faktorer samverkar. Ibland uppstår åtgärdernas effekter inte förrän efter flera år, och tiden för fullt genomslag kan vara lång. Mervärdena kan också variera väsentligt mellan olika projekt. \n\nExempel 1: Införande av energiledningssystem innebär ofta förbättrad produktkvalitet genom att de nya rutinerna och förbättrade arbetsstrukturer leder till identifiering av lönsamma energieffektiviseringsåtgärder, en stabilare process med högre och jämnare kvalitet m.m. Genom förbättrad produktkvalitet kan energiledningssystem också hjälpa företaget att vinna nya leverantörskontrakt och tillgång till nya marknader. Företag kan också vinna marknadsandelar genom att kommunicera sitt engagemang för energieffektivitet i olika sammanhang för att stärka sitt varumärke, och i offentliga upphandlingar ställs ofta krav på miljö- och eller energiledningssystem.\n\nExempel 2: Energiledningssystem och energieffektiviseringsprojekt kan också bidra till förbättrade arbetsprocesser och därigenom minska risken för driftstopp, olyckor, arbetsskador m.m. En stabilare process kan ge minskade kostnader för underhåll, kassationer m.m.\n\nExempel 3: En förändrad resepolicy där resor ersätts med resfria möten innebär minskade reskostnader och effektivare användning av medarbetarnas arbetstid.\n\n"]
[null,null,null,"Exempel 4: Det är på många sätt en fördel att ha god ordning på energiuppföljningen. Byggnader där man har gått igenom hela energisystemet har ofta ett lägre behov av underhåll. I en organisation där energiledningssystem etablerades har felanmälningsfrekvensen minskat sedan man införde ett drift- och underhållssystem. Systemet används för att mäta och följa upp energianvändningen, och det hjälper organisationen att arbeta förebyggande. Det gör det också lätt att följa avvikelser månadsvis för analys och justering.\n\nExempel 5: Vissa åtgärder kan medföra en högre livslängd på till exempel komponenter eller utrustning. Samtidigt kan indirekta kostnader som t.ex. transporter, hyra av utrustning eller anlitande av  expertkompetens minska?\n\n"]
[null,null,null,"Åter till frågelistan"]
[null,null,null,"8         Sysselsättning"]
[null,null,null,"Detta mervärde hanteras i modellen som direkta arbetstillfällen utifrån åtgärden, inte som nettoförändrignar i sysselsättning i landet. "]
[null,null,null,"Åter till frågelistan"]
[null,null,null,"9         Värdet av tillgångar"]
[null,null,null,"Det finns olika sätt att värdera tillgångar på. Med tillgångar avses här byggnader, maskiner, komponenter, företag m.m. \n\nFör en byggnad kan värdet t.ex. öka tack vare renovering eller genomförande av energieffektiviseringsåtgärder. I en mindre ort visade sig värdet av bostäderna öka i det område där kommunen satsade på förbättrade cykelvägar och ökad trafiksäkerhet.\n\nI samband med energieffektiviseringsåtgärder i fastigheter kan i vissa fall värdet minska då kostnaderna ökar mer än intäkterna. Det kan exempelvis bero på att man inte får höja hyran till följd av energieffektiviseringsåtgärder i hyresfastigheter.\n\nFör ett företag kan energieffektiviseringsåtgärder påverka bedömningen av företagets framtida vinstmöjligheter och risker och därmed värderingen av företaget. \n\nExempel 1: Internationella studier har redovisat såväl högre totalavkastning som att värdeutvecklingen har varit starkare för byggnader som har energieffektiviserats. Dels värderas försäljningsvärdet högre om byggnaden har energieffektiviserats. Det syns också på ett indirekt sätt i värderingen genom att en lägre energianvändning gör att driftskostnaderna blir lägre per areaenhet. De lägre driftskostnaderna bidrar till en högre vädring av byggnaden.\n\nI Sverige saknas ännu forskning som visar statistiskt hur energieffektiviseringsåtgärder påverkar fastighetsvärdet. Intervjuer med värderare och investerare visar dock att stora fastighetsföretag, både de som äger bostäder och de som äger kommersiella fastigheter, tar hänsyn till om byggnaden har energieffektiviserats när de värderar en byggnad.\n"]
[null,null,null,"Exempel 2: För lokalfastighetsägare som hyr ut till offentliga aktörer och de privata fastighetsägare som har en stark miljöpolicy ger energieffektivisering en möjlighet att nå en större del av marknaden, vilket i sin tur ger bättre ekonomiska förutsättningar. \n\nExempel 3: Ett exempel är att den kompetenshöjning som uppnås genom ett energieffektiviseringsprojekt kan ses som en värdeökning för företaget. Det är således en investering i kunskapshöjning. En framgångsfaktor för energieffektiviseringsprojekt kan vara stor öppenhet och en vilja att dela med sig av materialet. På så sätt kan man skapa samarbeten med andra kommuner och hitta synergieffekter med pågående projekt i andra kommuner.\n"]
[null,null,null,"Åter till frågelistan"]
[null,null,null,"10         Offentliga sektorns budget"]
[null,null,null,"Energieffektivitetsåtgärder som tillämpas i en sektor kan ha en inverkan på såväl den kommunala budgeten som för annan offentlig budget. Att införa styrmedel och program för energieffektivisering och att genomföra åtgärder för energieffektivisering i den offentliga sektorn medför utgifter i den offentliga budgeten, och dessa utgifter måste vägas noggrant i förhållande till de samhälleliga fördelarna med insatsen. Här är det viktigt att inkludera alla typer av kostnadsbesparingar som uppnås genom energieffektiviseringsåtgärderna. Budgetkonsekvenser från energieffektivitet kan delas upp i direkt påverkan från minskat energibehov och resulterande kostnadsbesparingar respektive indirekta effekter som t.ex. minskade samhälleliga kostnader för sjukvård, strukturella förändringar i ekonomin och andra förändrade ekonomiska aktiviteter. \n\nEn positiv effekt som ofta uppstår tack vare regionala samarbetsprojekt om energieffektiviseringsåtgärder är att samarbetsparterna skapar nya kontaktytor. Det kan leda till att de berörda verksamheterna också börjar diskutera andra frågor och lösningar att samarbeta kring. I förlängningen kan sådant samarbete leda till minskade kostnader i den offentliga sektorns budget.\n\nExempel 1: De mest uppenbara effekterna på den offentliga budgeten är när de energieffektivitetsåtgärder som genomförs inom den offentliga sektorn, genererar lägre energianvändning och därmed lägre energikostnader. Det kan t.ex. inkludera åtgärder som genomförs i kommunalt ägda fastigheter eller i driften av kommunala verksamheter såsom vattenförsörjning, offentlig belysning och för institutionella anläggningar såsom skolor och sjukhus. \n\nExempel 2: Genom ett pilotprojekt/demonstrationsprojekt i en kommun har det skapats samordningsvinster för andra kommuner. Den metodutveckling som genomförts inom ramen för projektet har bidragit till att spara tid för andra kommuner som därmed har kunnat genomföra samma typ av projekt till lägre kostnader.\n\nExempel 3: Fastighetsförvaltningen gör åtgärder som ger minskade kostnader för utbildningsförvaltningen. De sparade medlen kan då t.ex. skjutas över till skolverksamheten som kan använda de frigjorda medlen till fler lärartjänster, mer läromedel eller andra satsningar inom skolverksamheten."]
[null,null,null,"Åter till frågelistan"]
[null,null,null,"11         Disponibel inkomst"]
[null,null,null,"Här bedöms minskade kostnader till följd av sänkta energikostnader hos individer, företag eller organisationer. Hur dessa frigjorda medel används påverkar vilka effekter som åtgärden medför. Exempelvis kan sänkta energikostnader frigöra medel för köp av tjänster eller varor, och den nytta som kan nås för de erhållna energibesparingskostnaderna innebär således en möjlig ökad välfärd.\n\nExempel 1: En kommun inför en bilpool som är tillgänglig för allmänheten under kvällar och helger. Ett antal hushåll får därmed möjlighet att använda bilpoolen istället för att ha egen bil. Detta medför att de berörda hushållens bilkostnader minskar. \n \nExempel 2: För hyresgäster som betalar kallhyra påverkas uppvärmningskostnaderna vid energieffektivisering, och vid byte till exempelvis mer energieffektiva vitvaror påverkas hyresgästernas elkostnader. Även när hyresgästerna inte står för uppvärmningskostnaderna kan energieffektiviseringsåtgärder leda till att hyresgästernas energikostnader förändras, t.ex. i samband med så kallade gröna hyresavtal.\n\nExempel 3: Individuell debitering av varmvatten och/eller värme kan leda till minskade boendekostnader genom att varje hushåll då får incitament att hushålla med energin"]
[null,null,null,"Åter till frågelistan"]